fUST/lending_fUST_20241105
["ID","MTS","AMOUNT","RATE_DAILY","PERIOD"]
[341352481,1730820455210,-162.62527204,0.00041095,14]
[341352482,1730820455232,-500.0,0.00041095,14]
[341352483,1730820455253,-500.0,0.00041095,14]
[341352484,1730820455280,-500.0,0.00041095,14]
[341352485,1730820455303,-500.0,0.00041095,14]
[341352486,1730820455324,-500.0,0.00041095,14]
[341352487,1730820455346,-500.0,0.00041095,14]
[341352488,1730820455368,-513.85669913,0.00041095,14]
[341352489,1730820455391,-518.21254573,0.00041095,14]
[341352490,1730820455414,-137.37158838,0.00041095,14]
[341352492,1730820515117,424.43250353,0.000134,2]
[341352496,1730820548283,-2286.61421039,0.00020377,2]
[341352497,1730820548306,-4844.89123995,0.00022,30]
[341352498,1730820554106,-2328.8349828,0.00022,30]
[341352499,1730820556147,-14331.72098619,0.00022,30]
[341352504,1730820564295,-72067.87646982,0.00022,30]
[341352505,1730820573120,-4344.23766491,0.00022,30]
[341352542,1730820632244,-500.0,0.00021973,2]
[341352543,1730820632255,-349445.82513318,0.00022,30]
[341352544,1730820632346,-91081.60826047,0.00022,30]
[341352545,1730820632358,-299.17748,0.00022,30]
[341352573,1730820638457,-161.43049274,0.000219,2]
[341352574,1730820638467,-48838.56950856,0.00022,30]
[341352580,1730820640368,-11114.5191069,0.00022,30]
[341352581,1730820640378,-812.00251591,0.00022,3]
[341352582,1730820640387,-1000.0,0.00023342,2]
[341352583,1730820640397,-2500.29021888,0.0002509,2]
[341352584,1730820640410,-176.48,0.000251,14]
[341352585,1730820640423,-1092.04720937,0.00025847,2]
[341352586,1730820640433,-161.43049272,0.00028567,2]
[341352587,1730820640443,-500.0,0.00030137,2]
[341352588,1730820640452,-388.901269,0.00030137,2]
[341352589,1730820640462,-2471.67043285,0.00032,5]
[341352590,1730820640472,-4091.59977054,0.00033,4]
[341352591,1730820640481,-472.68,0.000337,2]
[341352592,1730820640490,-10003.94,0.00033891,7]
[341352593,1730820640499,-5031.40928606,0.00033891,20]
[341352594,1730820640509,-1888.09647743,0.0003398,4]
[341352595,1730820640518,-234.93,0.00035616,10]
[341352596,1730820640528,-1757.43464516,0.00036123,2]
[341352597,1730820640541,-193.35204194,0.00036123,2]
[341352598,1730820640552,-428.17,0.00036376,10]
[341352599,1730820640561,-86.32795806,0.00036386,2]
[341352620,1730820643950,-3886.52901977,0.00036386,2]
[341352633,1730820646389,-161.43049272,0.00035233,2]
[341352634,1730820646399,-498.66950728,0.00036386,2]
[341352638,1730820647570,-20102.40207229,0.00036386,2]
[341352639,1730820647580,-351.09,0.0004,2]
[341352640,1730820647590,-500.0,0.00041073,5]
[341352641,1730820647599,-999.0,0.00041094,120]
[341352642,1730820647608,-362.62841162,0.00041095,14]
[341352643,1730820647619,-500.0,0.00041095,14]
[341352644,1730820647629,-500.0,0.00041095,14]
[341352645,1730820647638,-500.0,0.00041095,14]
[341352646,1730820647647,-500.0,0.00041095,14]
[341352647,1730820647736,-237.5872132,0.00041095,14]
[341352648,1730820647746,-500.0,0.00041095,14]
[341352649,1730820647755,-500.0,0.00041095,14]
[341352650,1730820647764,-500.0,0.00041095,14]
[341352651,1730820647775,-520.82015298,0.00041095,14]
[341352652,1730820647784,-519.67495171,0.00041095,14]
[341352653,1730820647795,-500.0,0.00041095,14]
[341352654,1730820647806,-500.0,0.00041095,14]
[341352655,1730820647816,-204.79,0.00041095,14]
[341352656,1730820647825,-200.0,0.00041095,7]
[341352657,1730820647835,-200.0,0.00041095,7]
[341352658,1730820647844,-230.98713841,0.00041095,7]
[341352659,1730820647853,-500.0,0.00041095,14]
[341352660,1730820647864,-500.0,0.00041095,14]
[341352661,1730820647874,-382.59264945,0.00041095,14]
[341352662,1730820647883,-500.0,0.00041095,14]
[341352663,1730820647894,-500.0,0.00041095,14]
[341352664,1730820647904,-500.0,0.00041095,14]
[341352665,1730820647917,-500.0,0.00041095,14]
[341352666,1730820647926,-503.19819872,0.00041095,14]
[341352667,1730820647936,-506.45505666,0.00041095,14]
[341352668,1730820647945,-500.0,0.00041095,14]
[341352669,1730820647954,-500.0,0.00041095,14]
[341352670,1730820647964,-500.0,0.00041095,14]
[341352671,1730820647975,-500.0,0.00041095,14]
[341352672,1730820647986,-360.56927609,0.00041095,14]
[341352673,1730820647996,-500.0,0.00041095,14]
[341352674,1730820648006,-500.0,0.00041095,14]
[341352675,1730820648016,-500.0,0.00041095,14]
[341352676,1730820648026,-500.0,0.00041095,14]
[341352677,1730820648035,-507.02971178,0.00041095,14]
[341352678,1730820648046,-500.0,0.00041095,14]
[341352679,1730820648057,-599.06018316,0.00041095,14]
[341352680,1730820648067,-507.71998242,0.00041095,14]
[341352681,1730820648078,-500.0,0.00041095,14]
[341352682,1730820648088,-500.0,0.00041095,14]
[341352683,1730820648097,-500.0,0.00041095,14]
[341352684,1730820648106,-641.15696644,0.00041095,14]
[341352685,1730820648116,-500.0,0.00041095,14]
[341352686,1730820648126,-500.0,0.00041095,14]
[341352687,1730820648135,-500.0,0.00041095,14]
[341352688,1730820648145,-506.79307979,0.00041095,14]
[341352689,1730820648155,-500.0,0.00041095,14]
[341352690,1730820648166,-500.0,0.00041095,14]
[341352691,1730820648176,-243.9397185,0.00041095,14]
[341352692,1730820648186,-509.09193813,0.00041095,14]
[341352693,1730820648195,-500.0,0.00041095,14]
[341352694,1730820648204,-500.0,0.00041095,14]
[341352695,1730820648213,-534.87718172,0.00041095,14]
[341352696,1730820648223,-500.0,0.00041095,14]
[341352697,1730820648232,-623.74070195,0.00041095,14]
[341352698,1730820648241,-500.0,0.00041095,14]
[341352699,1730820648251,-500.0,0.00041095,14]
[341352700,1730820648260,-500.0,0.00041095,14]
[341352701,1730820648269,-500.0,0.00041095,14]
[341352702,1730820648278,-500.0,0.00041095,14]
[341352703,1730820648288,-500.0,0.00041095,14]
[341352704,1730820648297,-500.0,0.00041095,14]
[341352705,1730820648307,-503.73895507,0.00041095,14]
[341352706,1730820648316,-10.68463501,0.00041095,14]
[341352708,1730820796103,202.875039,0.00013973,2]
[341352713,1730821067187,520.83333333,0.00020185,2]
[341352733,1730821288745,162.669353,0.00013973,2]
[341352738,1730821630173,-156.18489857,0.00022073,2]
[341352739,1730821639115,-197.24673725,0.00022073,2]
[341352740,1730821639146,-162.669353,0.00022174,2]
[341352741,1730821639175,-520.83333333,0.00022318,2]
[341352742,1730821639204,-162.669353,0.00030374,2]
[341352743,1730821639232,-3081.2581123,0.00030959,2]
[341352744,1730821639259,-160.530949,0.00031866,2]
[341352745,1730821639285,-874.9798816,0.00032257,2]
[341352746,1730821639312,-400.0,0.00033697,2]
[341352747,1730821639337,-1211.03128397,0.00033698,14]
[341352748,1730821639363,-425.41,0.000337,2]
[341352749,1730821639390,-1362.6522041,0.00034034,16]
[341352750,1730821639416,-156.65758258,0.00034998,7]
[341352751,1730821639442,-622.2308883,0.00034999,7]
[341352752,1730821639468,-3088.34203244,0.00034999,120]
[341352753,1730821639496,-53791.72408357,0.00035,2]
[341352754,1730821641098,-6208.27591643,0.00035,2]
[341352755,1730821641129,-636.92468128,0.000382,109]
[341352756,1730821641156,-636.92468126,0.000382,109]
[341352757,1730821641187,-636.92468126,0.000382,109]
[341352758,1730821641212,-162.669353,0.00038575,2]
[341352759,1730821641237,-315.98,0.00039,2]
[341352760,1730821641262,-636.92468126,0.00039367,116]
[341352761,1730821641287,-500.0,0.00040995,2]
[341352762,1730821641312,-230.71251643,0.00040995,3]
[341352763,1730821641333,-19025.5849,0.00041,10]
[341352764,1730821641358,-500.0,0.00041073,2]
[341352765,1730821641386,-336.66,0.00041085,10]
[341352766,1730821641409,-500.0,0.00041094,2]
[341352767,1730821641433,-500.0,0.00041094,7]
[341352768,1730821641457,-500.0,0.00041094,7]
[341352769,1730821641481,-510.2238971,0.00041094,7]
[341352770,1730821641505,-999.0,0.00041094,120]
[341352771,1730821641530,-511.33869735,0.00041095,14]
[341352772,1730821641557,-598.54732222,0.00041095,14]
[341352773,1730821641582,-529.81514878,0.00041095,14]
[341352774,1730821641604,-170.37803737,0.00041095,14]
[341352775,1730821641631,-500.0,0.00041095,14]
[341352776,1730821641654,-500.0,0.00041095,14]
[341352777,1730821641677,-298.64788567,0.00041095,14]
[341352778,1730821641701,-500.0,0.00041095,7]
[341352779,1730821641809,-500.0,0.00041095,7]
[341352780,1730821641858,-500.0,0.00041095,7]
[341352781,1730821641882,-500.0,0.00041095,7]
[341352782,1730821641906,-622.97064235,0.00041095,7]
[341352783,1730821641928,-500.0,0.00041095,14]
[341352784,1730821641948,-500.0,0.00041095,14]
[341352785,1730821641969,-500.0,0.00041095,14]
[341352786,1730821641990,-500.0,0.00041095,14]
[341352787,1730821642011,-595.6971547,0.00041095,14]
[341352788,1730821642036,-500.0,0.00041095,14]
[341352789,1730821642057,-500.0,0.00041095,14]
[341352790,1730821642078,-500.0,0.00041095,14]
[341352791,1730821642098,-500.0,0.00041095,14]
[341352792,1730821642119,-507.14589101,0.00041095,14]
[341352793,1730821642143,-500.0,0.00041095,14]
[341352794,1730821642164,-500.0,0.00041095,14]
[341352795,1730821642185,-500.0,0.00041095,14]
[341352796,1730821642206,-500.0,0.00041095,14]
[341352797,1730821642228,-511.7063501,0.00041095,14]
[341352798,1730821642250,-491.06033013,0.00041095,14]
[341352799,1730821642272,-500.0,0.00041095,14]
[341352800,1730821642294,-500.0,0.00041095,14]
[341352801,1730821642314,-500.0,0.00041095,14]
[341352802,1730821642336,-515.9757387,0.00041095,14]
[341352803,1730821642357,-510.22539395,0.00041095,14]
[341352804,1730821642379,-500.0,0.00041095,14]
[341352805,1730821642400,-500.0,0.00041095,14]
[341352806,1730821642420,-500.0,0.00041095,14]
[341352807,1730821642441,-500.0,0.00041095,14]
[341352808,1730821642461,-509.39548992,0.00041095,14]
[341352809,1730821642482,-500.0,0.00041095,14]
[341352810,1730821642503,-500.0,0.00041095,14]
[341352811,1730821642524,-500.0,0.00041095,14]
[341352812,1730821642545,-500.0,0.00041095,14]
[341352813,1730821642567,-500.0,0.00041095,14]
[341352814,1730821642588,-500.0,0.00041095,14]
[341352815,1730821642609,-500.0,0.00041095,14]
[341352816,1730821642631,-323.47360671,0.00041095,14]
[341352817,1730821642652,-500.0,0.00041095,14]
[341352818,1730821642672,-500.0,0.00041095,14]
[341352819,1730821642693,-241.69534257,0.00041095,14]
[341352820,1730821642715,-300.02260539,0.00041095,14]
[341352821,1730821642736,-505.62097648,0.00041095,10]
[341352822,1730821642757,-502.6910432,0.00041095,14]
[341352823,1730821642779,-504.77521428,0.00041095,14]
[341352824,1730821642800,-507.56058286,0.00041095,14]
[341352825,1730821642821,-500.0,0.00041095,14]
[341352826,1730821642842,-500.0,0.00041095,14]
[341352827,1730821642863,-500.0,0.00041095,14]
[341352828,1730821642886,-500.0,0.00041095,14]
[341352829,1730821642906,-500.0,0.00041095,14]
[341352830,1730821642928,-500.0,0.00041095,14]
[341352831,1730821642949,-500.0,0.00041095,14]
[341352832,1730821642970,-511.63777353,0.00041095,14]
[341352833,1730821642992,-500.0,0.00041095,14]
[341352834,1730821643017,-500.0,0.00041095,14]
[341352835,1730821643039,-506.29956401,0.00041095,14]
[341352836,1730821643062,-500.0,0.00041095,14]
[341352837,1730821643083,-500.0,0.00041095,14]
[341352838,1730821643106,-500.0,0.00041095,14]
[341352839,1730821643129,-71.2984138,0.00041095,14]
[341352840,1730821643228,-364.20008145,0.00041095,14]
[341352841,1730821643270,-64.50150475,0.00041095,14]
[341352842,1730821643292,-500.0,0.00041095,14]
[341352843,1730821643315,-500.0,0.00041095,14]
[341352844,1730821643338,-59.85593017,0.00041095,14]
[341352845,1730821681992,520.83333333,0.00020185,2]
[341352846,1730821809681,718.61663851,0.00033867,30]
[341352873,1730821833320,-382.87,0.000337,2]
[341352874,1730821833329,-792.3896197,0.00036152,2]
[341352875,1730821833339,-6178.6053262,0.000402,31]
[341352876,1730821833355,-2367.68,0.000402,31]
[341352877,1730821833367,-1729.95423247,0.000402,31]
[341352903,1730821838704,-251.35652341,0.000402,31]
[341352904,1730821838716,-2480.40391792,0.000402,31]
[341352905,1730821838726,-500.0,0.00040995,2]
[341352906,1730821838735,-170.80529994,0.00041073,2]
[341352907,1730821838745,-525.64,0.00041085,10]
[341352908,1730821838755,-438.03,0.00041085,10]
[341352909,1730821838768,-437.06162181,0.00041094,31]
[341352910,1730821838778,-440.14406983,0.00041095,14]
[341352911,1730821838787,-500.0,0.00041095,14]
[341352912,1730821838797,-500.0,0.00041095,14]
[341352913,1730821838807,-500.0,0.00041095,14]
[341352914,1730821838816,-500.0,0.00041095,14]
[341352915,1730821838825,-225.5931682,0.00041095,14]
[341352916,1730821838838,-345.0065523,0.00041095,14]
[341352917,1730821838850,-53.04956814,0.00041095,14]
[341352918,1730821838859,-500.0,0.00041095,14]
[341352919,1730821838868,-500.0,0.00041095,14]
[341352920,1730821838878,-437.83138173,0.00041095,14]
[341352921,1730821838887,-545.36889193,0.00041095,14]
[341352922,1730821838896,-500.0,0.00041095,14]
[341352923,1730821838906,-500.0,0.00041095,14]
[341352924,1730821838915,-339.24053274,0.00041095,14]
[341352925,1730821838925,-500.0,0.00041095,14]
[341352926,1730821838935,-500.0,0.00041095,14]
[341352927,1730821838946,-500.0,0.00041095,14]
[341352928,1730821838955,-500.0,0.00041095,14]
[341352929,1730821838964,-500.0,0.00041095,14]
[341352930,1730821838975,-500.0,0.00041095,14]
[341352931,1730821838984,-150.57236268,0.00041095,14]
[341352932,1730821838993,-488.15201306,0.00041095,14]
[341352933,1730821839003,-500.0,0.00041095,14]
[341352934,1730821839016,-500.0,0.00041095,14]
[341352935,1730821839026,-500.0,0.00041095,14]
[341352936,1730821839036,-500.0,0.00041095,14]
[341352937,1730821839045,-510.28760183,0.00041095,14]
[341352938,1730821839057,-500.0,0.00041095,14]
[341352939,1730821839067,-500.0,0.00041095,14]
[341352940,1730821839079,-500.0,0.00041095,14]
[341352941,1730821839092,-500.0,0.00041095,14]
[341352942,1730821839102,-500.0,0.00041095,14]
[341352943,1730821839189,-500.0,0.00041095,14]
[341352944,1730821839199,-500.0,0.00041095,14]
[341352945,1730821839208,-500.0,0.00041095,14]
[341352946,1730821839219,-500.0,0.00041095,14]
[341352947,1730821839229,-515.00804822,0.00041095,14]
[341352948,1730821839238,-500.0,0.00041095,14]
[341352949,1730821839248,-500.0,0.00041095,14]
[341352950,1730821839257,-500.0,0.00041095,14]
[341352951,1730821839272,-500.0,0.00041095,14]
[341352952,1730821839282,-500.0,0.00041095,14]
[341352953,1730821839291,-545.83460449,0.00041095,14]
[341352954,1730821839301,-326.53244874,0.00041095,14]
[341352955,1730821839310,-501.21633662,0.00041095,14]
[341352956,1730821839321,-506.24847512,0.00041095,14]
[341352957,1730821839330,-391.27303921,0.00041095,14]
[341352958,1730821839340,-500.0,0.00041095,14]
[341352959,1730821839349,-500.0,0.00041095,14]
[341352960,1730821839360,-500.0,0.00041095,14]
[341352961,1730821839370,-500.0,0.00041095,14]
[341352962,1730821839379,-500.0,0.00041095,14]
[341352963,1730821839389,-500.0,0.00041095,14]
[341352964,1730821839398,-507.77413033,0.00041095,14]
[341352965,1730821839407,-500.0,0.00041095,14]
[341352966,1730821839417,-500.0,0.00041095,14]
[341352967,1730821839426,-500.0,0.00041095,14]
[341352968,1730821839435,-388.64462477,0.00041095,14]
[341352969,1730821839445,-500.0,0.00041095,14]
[341352970,1730821839454,-500.0,0.00041095,14]
[341352971,1730821839464,-500.0,0.00041095,14]
[341352972,1730821839473,-500.0,0.00041095,14]
[341352973,1730821839483,-305.16537615,0.00041095,14]
[341352974,1730821839493,-504.27833559,0.00041095,14]
[341352975,1730821839502,-370.42412604,0.00041095,14]
[341352976,1730821839515,-500.0,0.00041095,14]
[341352977,1730821839525,-500.0,0.00041095,14]
[341352978,1730821839535,-500.0,0.00041095,14]
[341352979,1730821839546,-500.0,0.00041095,14]
[341352980,1730821839555,-508.66673556,0.00041095,14]
[341352981,1730821839564,-500.0,0.00041095,14]
[341352982,1730821839573,-513.07308745,0.00041095,14]
[341352983,1730821839582,-500.0,0.00041095,14]
[341352984,1730821839591,-500.0,0.00041095,14]
[341352985,1730821839600,-500.0,0.00041095,14]
[341352986,1730821839609,-397.60678918,0.00041095,14]
[341352987,1730821839619,-500.0,0.00041095,14]
[341352988,1730821839628,-515.39684858,0.00041095,14]
[341352989,1730821839638,-504.95958288,0.00041095,14]
[341352990,1730821839648,-500.0,0.00041095,14]
[341352991,1730821839658,-168.06368299,0.00041095,14]
[341352992,1730821839668,-501.06394467,0.00041095,14]
[341352993,1730821839679,-500.25492016,0.00041095,14]
[341352994,1730821839689,-555.20658518,0.00041095,14]
[341352995,1730821839698,-541.29848472,0.00041095,14]
[341352996,1730821839708,-233.37101015,0.00041095,14]
[341352997,1730821839717,-500.0,0.00041095,14]
[341352998,1730821839727,-500.0,0.00041095,14]
[341352999,1730821839736,-500.0,0.00041095,14]
[341353000,1730821839746,-500.0,0.00041095,14]
[341353001,1730821839756,-365.12377162,0.00041095,14]
[341353002,1730821839768,-508.01088676,0.00041095,14]
[341353003,1730821839777,-518.42484759,0.00041095,14]
[341353004,1730821839786,-500.0,0.00041095,14]
[341353005,1730821839796,-500.0,0.00041095,14]
[341353006,1730821839805,-427.15251484,0.00041095,14]
[341353007,1730821839814,-500.0,0.00041095,14]
[341353008,1730821839825,-500.0,0.00041095,14]
[341353009,1730821839835,-464.37765289,0.00041095,14]
[341353010,1730821839845,-573.27250787,0.00041095,14]
[341353011,1730821839854,-500.0,0.00041095,14]
[341353012,1730821839864,-497.38633113,0.00041095,14]
[341353013,1730821839874,-500.0,0.00041095,14]
[341353014,1730821839884,-500.0,0.00041095,14]
[341353015,1730821839894,-500.0,0.00041095,14]
[341353016,1730821839903,-500.0,0.00041095,14]
[341353017,1730821839913,-500.0,0.00041095,14]
[341353019,1730821839923,-420.38791739,0.00041095,14]
[341353029,1730821840750,-79.61208261,0.00041095,14]
[341353030,1730821840760,-500.0,0.00041095,14]
[341353031,1730821840771,-500.0,0.00041095,14]
[341353032,1730821840781,-500.0,0.00041095,14]
[341353033,1730821840791,-500.0,0.00041095,14]
[341353034,1730821840800,-637.93486194,0.00041095,14]
[341353035,1730821840810,-504.61269594,0.00041095,14]
[341353036,1730821840819,-500.0,0.00041095,14]
[341353037,1730821840830,-500.0,0.00041095,14]
[341353038,1730821840839,-500.0,0.00041095,14]
[341353039,1730821840848,-500.0,0.00041095,14]
[341353040,1730821840858,-500.0,0.00041095,14]
[341353041,1730821840867,-500.0,0.00041095,14]
[341353042,1730821840877,-448.23673004,0.00041095,14]
[341353043,1730821840886,-500.0,0.00041095,14]
[341353044,1730821840895,-187.18538441,0.00041095,14]
[341353063,1730821844041,-312.81461559,0.00041095,14]
[341353064,1730821844051,-500.0,0.00041095,14]
[341353065,1730821844061,-500.0,0.00041095,14]
[341353066,1730821844071,-462.42437733,0.00041095,14]
[341353067,1730821844080,-500.0,0.00041095,14]
[341353068,1730821844095,-500.0,0.00041095,14]
[341353069,1730821844105,-500.0,0.00041095,14]
[341353070,1730821844115,-47.77031133,0.00041095,14]
[341353071,1730821844129,-452.22968867,0.00041095,14]
[341353072,1730821844139,-500.0,0.00041095,14]
[341353073,1730821844148,-575.15,0.00041095,14]
[341353074,1730821844159,-500.0,0.00041095,14]
[341353075,1730821844168,-453.79352227,0.00041095,14]
[341353076,1730821844185,-46.20647773,0.00041095,14]
[341353077,1730821844195,-500.0,0.00041095,14]
[341353079,1730821844204,-500.0,0.00041095,14]
[341353082,1730821844213,-500.0,0.00041095,14]
[341353085,1730821844223,-500.0,0.00041095,14]
[341353087,1730821844233,-500.0,0.00041095,14]
[341353089,1730821844243,-500.0,0.00041095,14]
[341353091,1730821844252,-500.0,0.00041095,14]
[341353093,1730821844262,-500.0,0.00041095,14]
[341353095,1730821844273,-500.0,0.00041095,14]
[341353097,1730821844283,-500.0,0.00041095,14]
[341353099,1730821844292,-500.0,0.00041095,14]
[341353101,1730821844302,-500.0,0.00041095,14]
[341353103,1730821844311,-500.0,0.00041095,14]
[341353105,1730821844320,-500.0,0.00041095,14]
[341353107,1730821844330,-500.0,0.00041095,14]
[341353108,1730821844339,-500.0,0.00041095,14]
[341353109,1730821844349,-500.0,0.00041095,14]
[341353110,1730821844358,-500.0,0.00041095,14]
[341353111,1730821844367,-500.0,0.00041095,14]
[341353112,1730821844377,-500.0,0.00041095,14]
[341353113,1730821844386,-500.0,0.00041095,14]
[341353114,1730821844396,-500.0,0.00041095,14]
[341353115,1730821844405,-479.65,0.00041095,14]
[341353116,1730821844414,-500.0,0.00041095,14]
[341353117,1730821844424,-503.58185941,0.00041095,14]
[341353118,1730821844433,-240.96507163,0.00041095,14]
[341353119,1730821844443,-500.0,0.00041095,14]
[341353120,1730821844452,-500.0,0.00041095,14]
[341353121,1730821844461,-500.0,0.00041095,14]
[341353122,1730821844471,-500.0,0.00041095,14]
[341353123,1730821844480,-546.93395141,0.00041095,14]
[341353124,1730821844489,-500.0,0.00041095,14]
[341353125,1730821844499,-500.0,0.00041095,14]
[341353126,1730821844508,-500.0,0.00041095,14]
[341353127,1730821844516,-500.0,0.00041095,14]
[341353128,1730821844529,-500.0,0.00041095,14]
[341353129,1730821844539,-509.2061198,0.00041095,14]
[341353130,1730821844548,-500.0,0.00041095,14]
[341353131,1730821844558,-152.04977326,0.00041095,14]
[341353132,1730821844567,-511.0489784,0.00041095,14]
[341353133,1730821844578,-513.248286,0.00041095,14]
[341353134,1730821844587,-504.43567823,0.00041095,14]
[341353135,1730821844596,-500.0,0.00041095,14]
[341353136,1730821844606,-598.63579293,0.00041095,14]
[341353137,1730821844616,-500.99284423,0.00041095,14]
[341353138,1730821844625,-500.0,0.00041095,14]
[341353139,1730821844635,-500.0,0.00041095,14]
[341353140,1730821844644,-500.0,0.00041095,14]
[341353141,1730821844653,-509.28431928,0.00041095,14]
[341353142,1730821844663,-500.0,0.00041095,14]
[341353143,1730821844672,-500.0,0.00041095,14]
[341353144,1730821844682,-500.0,0.00041095,14]
[341353145,1730821844692,-500.0,0.00041095,14]
[341353146,1730821844702,-500.0,0.00041095,14]
[341353147,1730821844711,-500.0,0.00041095,14]
[341353148,1730821844721,-500.0,0.00041095,14]
[341353149,1730821844805,-286.51432523,0.00041095,14]
[341353150,1730821844825,-500.0,0.00041095,14]
[341353151,1730821844835,-500.0,0.00041095,14]
[341353152,1730821844844,-500.0,0.00041095,14]
[341353153,1730821844854,-500.0,0.00041095,14]
[341353154,1730821844863,-500.0,0.00041095,14]
[341353155,1730821844873,-500.0,0.00041095,14]
[341353156,1730821844883,-568.36743545,0.00041095,14]
[341353157,1730821844892,-500.0,0.00041095,14]
[341353158,1730821844902,-500.0,0.00041095,14]
[341353159,1730821844911,-500.0,0.00041095,14]
[341353160,1730821844921,-500.0,0.00041095,14]
[341353161,1730821844930,-500.0,0.00041095,14]
[341353162,1730821844940,-500.0,0.00041095,14]
[341353163,1730821844950,-500.0,0.00041095,14]
[341353164,1730821844959,-502.50709085,0.00041095,14]
[341353165,1730821844969,-532.27509647,0.00041095,14]
[341353166,1730821844979,-500.0,0.00041095,14]
[341353167,1730821844989,-500.0,0.00041095,14]
[341353168,1730821844999,-500.0,0.00041095,14]
[341353169,1730821845009,-500.0,0.00041095,14]
[341353170,1730821845022,-500.0,0.00041095,14]
[341353171,1730821845031,-500.0,0.00041095,14]
[341353172,1730821845041,-500.0,0.00041095,14]
[341353173,1730821845050,-503.30441183,0.00041095,14]
[341353174,1730821845061,-503.28979221,0.00041095,14]
[341353175,1730821845070,-631.44042112,0.00041095,14]
[341353176,1730821845079,-500.0,0.00041095,14]
[341353177,1730821845093,-500.0,0.00041095,14]
[341353178,1730821845103,-500.0,0.00041095,14]
[341353179,1730821845112,-500.0,0.00041095,14]
[341353180,1730821845121,-417.24575362,0.00041095,14]
[341353181,1730821845132,-500.0,0.00041095,14]
[341353182,1730821845141,-500.0,0.00041095,14]
[341353183,1730821845151,-500.0,0.00041095,14]
[341353184,1730821845162,-513.3388913,0.00041095,14]
[341353185,1730821845173,-500.0,0.00041095,14]
[341353186,1730821845183,-500.0,0.00041095,14]
[341353187,1730821845193,-500.0,0.00041095,14]
[341353188,1730821845203,-500.0,0.00041095,14]
[341353189,1730821845212,-500.0,0.00041095,14]
[341353190,1730821845222,-500.0,0.00041095,14]
[341353191,1730821845232,-500.0,0.00041095,14]
[341353192,1730821845243,-500.0,0.00041095,14]
[341353193,1730821845254,-500.0,0.00041095,14]
[341353194,1730821845264,-500.0,0.00041095,14]
[341353195,1730821845278,-500.0,0.00041095,14]
[341353196,1730821845288,-500.0,0.00041095,14]
[341353197,1730821845298,-556.20741071,0.00041095,14]
[341353198,1730821845308,-500.0,0.00041095,14]
[341353199,1730821845319,-507.17951078,0.00041095,14]
[341353200,1730821845329,-500.0,0.00041095,14]
[341353201,1730821845339,-513.31653381,0.00041095,14]
[341353202,1730821845349,-500.0,0.00041095,14]
[341353203,1730821845358,-500.0,0.00041095,14]
[341353204,1730821845368,-500.0,0.00041095,14]
[341353205,1730821845378,-471.59741227,0.00041095,14]
[341353206,1730821845387,-500.0,0.00041095,14]
[341353207,1730821845398,-500.0,0.00041095,14]
[341353208,1730821845407,-500.0,0.00041095,14]
[341353209,1730821845416,-500.0,0.00041095,14]
[341353210,1730821845425,-500.0,0.00041095,14]
[341353211,1730821845435,-500.0,0.00041095,14]
[341353212,1730821845444,-500.0,0.00041095,14]
[341353213,1730821845454,-518.43,0.00041095,14]
[341353214,1730821845465,-500.0,0.00041095,14]